bitfinex/quotes_BTCUSD_20250922
["timestamp","ask_amount","ask_price","bid_price","bid_amount"]
[1758524419308,1.88446427,112900.0,112890.0,0.00028]
[1758524419520,1.88442427,112900.0,112890.0,0.00028]
[1758524419724,1.53730427,112900.0,112890.0,0.00028]
[1758524419883,1.53428427,112900.0,112890.0,0.00028]
[1758524420069,0.75498144,112900.0,112890.0,0.01633]
[1758524420272,0.75798144,112900.0,112890.0,0.01956]
[1758524420501,1.4250146,112900.0,112890.0,0.01633]
[1758524420721,1.4250146,112900.0,112890.0,0.04559]
[1758524420722,0.38782954,112900.0,112890.0,0.04559]
[1758524421090,0.30255987,112900.0,112890.0,0.22275361]
[1758524421370,0.12541196,112900.0,112890.0,0.88978677]
[1758524421570,0.39255679,112900.0,112890.0,0.88978677]
[1758524421785,0.59954669,112920.0,112900.0,0.17713944]
[1758524421980,0.68243183,112920.0,112910.0,0.87343538]
[1758524422187,0.77564,112920.0,112910.0,0.20640222]
[1758524422402,0.47868,112920.0,112910.0,0.20640222]
[1758524422526,0.47868,112920.0,112910.0,0.87343538]
[1758524422527,0.77616,112920.0,112910.0,0.87343538]
[1758524422738,0.77616,112920.0,112910.0,0.02927]
[1758524422739,0.95327654,112920.0,112910.0,0.02927]
[1758524422935,0.95327654,112920.0,112910.0,0.20640222]
[1758524423139,0.95327654,112920.0,112910.0,0.02927]
[1758524423361,0.95627654,112920.0,112910.0,0.04727]
[1758524424281,0.65879654,112920.0,112910.0,0.22440222]
[1758524424446,0.95623654,112920.0,112910.0,0.22440222]
[1758524424654,0.95719654,112920.0,112910.0,0.05227]
[1758524425062,0.95719654,112920.0,112910.0,0.22940222]
[1758524425270,0.95719654,112920.0,112910.0,0.05227]
[1758524426024,1.12987588,112920.0,112910.0,0.02501]
[1758524426262,1.12987588,112920.0,112910.0,0.023]
[1758524426263,2.17008094,112920.0,112910.0,0.023]
[1758524426673,2.19494094,112920.0,112910.0,0.023]
[1758524426952,2.20315948,112920.0,112910.0,0.023]
[1758524427122,1.41499811,112920.0,112910.0,0.02499]
[1758524427327,1.41285811,112920.0,112910.0,0.04818]
[1758524427529,1.11521811,112920.0,112910.0,0.04818]
[1758524427738,1.41501811,112920.0,112910.0,0.023]
[1758524427943,2.11762231,112920.0,112910.0,0.023]
[1758524428165,2.19467094,112920.0,112910.0,0.023]
[1758524428358,2.20289224,112920.0,112910.0,0.023]
[1758524429141,2.11762257,112920.0,112910.0,0.023]
[1758524431016,0.17713222,112910.0,112900.0,0.00046972]
[1758524431218,0.92979379,112910.0,112900.0,0.02666972]
[1758524431418,0.63255379,112910.0,112900.0,0.02865972]
[1758524431622,0.95627265,112910.0,112900.0,0.02865972]
[1758524431842,0.95615265,112910.0,112900.0,0.02865972]
[1758524432077,0.84073108,112910.0,112900.0,0.02865972]
[1758524432286,0.32359886,112910.0,112900.0,0.20580763]
[1758524432505,0.47401222,112910.0,112900.0,0.20580763]
[1758524432972,0.55928189,112910.0,112900.0,0.02865972]
[1758524433186,0.55928189,112910.0,112900.0,0.02564972]
[1758524433386,0.58807847,112910.0,112900.0,0.02564972]
[1758524433609,0.5048088,112910.0,112900.0,0.03664972]
[1758524434033,0.5026488,112910.0,112900.0,0.03664972]
[1758524434631,0.5048088,112910.0,112900.0,0.01146972]
[1758524434746,1.18008101,112910.0,112900.0,0.01146972]
[1758524434950,0.51608785,112910.0,112900.0,0.01146972]
[1758524435248,0.59832367,112910.0,112900.0,0.01146972]
[1758524435652,0.59832367,112910.0,112900.0,0.01345972]
[1758524435867,0.71678524,112910.0,112900.0,0.01146972]
[1758524436070,1.7481284,112910.0,112900.0,0.01146972]
[1758524436420,1.76718085,112910.0,112900.0,0.01146972]
[1758524436631,1.76718102,112910.0,112900.0,0.01146972]
[1758524438716,1.09934786,112910.0,112900.0,0.01146972]
[1758524438896,0.66049629,112910.0,112900.0,0.01345972]
[1758524439121,0.93524367,112910.0,112900.0,0.03664972]
[1758524439301,0.93548367,112910.0,112900.0,0.03664972]
[1758524439515,0.63928367,112910.0,112900.0,0.03965972]
[1758524439721,0.59756367,112910.0,112900.0,0.01345972]
[1758524439867,0.96555557,112910.0,112900.0,0.03965972]
[1758524440075,0.75396283,112910.0,112900.0,0.03965972]
[1758524440275,1.05224283,112910.0,112900.0,0.03664972]
[1758524440490,1.71927599,112910.0,112900.0,0.01345972]
[1758524441790,1.72231599,112910.0,112900.0,0.01146972]
[1758524442683,1.74141213,112910.0,112900.0,0.01146972]
[1758524443118,1.70822023,112910.0,112900.0,0.01146972]
[1758524444397,1.76572213,112910.0,112900.0,0.01146972]
[1758524444809,1.09868897,112910.0,112900.0,0.01146972]
[1758524445022,1.76572213,112910.0,112900.0,0.01146972]
[1758524447105,1.44529213,112910.0,112900.0,0.01146972]
[1758524447303,0.63103847,112910.0,112900.0,0.03965972]
[1758524447545,0.5049288,112910.0,112900.0,0.03965972]
[1758524447747,0.17913222,112910.0,112900.0,0.05737451]
[1758524447902,0.17913222,112910.0,112900.0,0.21680763]
[1758524448112,0.51913222,112910.0,112900.0,0.21680763]
[1758524448412,0.81977222,112910.0,112900.0,0.21680763]
[1758524448841,0.002,112910.0,112900.0,0.3020773]
[1758524449047,0.30256,112910.0,112900.0,0.96911046]
[1758524449209,0.002,112910.0,112900.0,0.3020773]
[1758524449415,0.30248,112910.0,112900.0,0.96911046]
[1758524449641,0.30244,112910.0,112900.0,0.96911046]
[1758524450686,0.30044,112910.0,112900.0,0.2930773]
[1758524451070,0.30344,112910.0,112900.0,0.79390101]
[1758524451247,0.30344,112910.0,112900.0,0.79190101]
[1758524451667,0.30344,112910.0,112900.0,0.3140773]
[1758524452107,0.48057222,112910.0,112900.0,0.3140773]
[1758524452317,0.48057222,112910.0,112900.0,0.22880763]
[1758524452524,0.30344,112910.0,112900.0,0.71063134]
[1758524453339,0.003,112910.0,112900.0,0.79590101]
[1758524453552,0.3038,112910.0,112900.0,0.79590101]
[1758524453753,0.3038,112910.0,112900.0,0.3140773]
[1758524453952,0.3056,112910.0,112900.0,0.79590101]
[1758524455154,0.003,112910.0,112900.0,0.79590101]
[1758524455357,0.003,112910.0,112900.0,1.27772472]
[1758524455575,0.30556,112910.0,112900.0,1.27772472]
[1758524455781,0.30556,112910.0,112900.0,1.61772472]
[1758524455991,0.3054,112910.0,112900.0,1.61772472]
[1758524456714,0.3054,112910.0,112900.0,1.13590101]
[1758524457366,0.3054,112910.0,112900.0,0.3140773]
[1758524457761,0.3054,112910.0,112900.0,0.79590101]
[1758524458361,0.3054,112910.0,112900.0,0.3140773]
[1758524458925,0.3054,112910.0,112900.0,0.79545101]
[1758524459270,0.003,112910.0,112900.0,0.79545101]
[1758524459482,0.30624,112910.0,112900.0,0.79545101]
[1758524459957,0.306,112910.0,112900.0,0.79545101]
[1758524460322,0.306,112910.0,112900.0,0.3136273]
[1758524460520,0.306,112910.0,112900.0,0.79244101]
[1758524460749,0.306,112910.0,112900.0,0.79543101]
[1758524461750,0.306,112910.0,112900.0,0.3136073]
[1758524461973,0.306,112910.0,112900.0,0.79543101]
[1758524462335,0.003,112910.0,112900.0,0.79543101]
[1758524462530,0.30584,112910.0,112900.0,0.79543101]
[1758524463224,0.30584,112910.0,112900.0,0.3136073]
[1758524463500,0.30584,112910.0,112900.0,0.79543101]
[1758524463709,0.003,112910.0,112900.0,1.61725472]
[1758524465473,0.003,112910.0,112900.0,0.6536073]
[1758524465851,0.003,112910.0,112900.0,1.13543101]
[1758524467042,0.003,112910.0,112900.0,1.61725472]
[1758524468859,0.003,112910.0,112900.0,1.13543101]
[1758524470324,0.003,112910.0,112900.0,1.44699101]
[1758524470552,0.003,112910.0,112900.0,1.44691101]
[1758524471016,0.003,112910.0,112900.0,1.44683101]
[1758524471266,0.003,112910.0,112900.0,1.92865472]
[1758524471771,0.53241013,113000.0,112900.0,1.92865472]
[1758524471772,0.31431,112980.0,112970.0,0.17703815]
[1758524472001,0.49348248,112980.0,112970.0,0.17703815]
[1758524472229,0.51842248,112980.0,112970.0,0.65886186]
[1758524472713,0.3414,112980.0,112970.0,0.65886186]
[1758524472943,0.3414,112980.0,112970.0,0.17717901]
[1758524473179,0.3414,112980.0,112970.0,0.65900272]
[1758524473423,0.31646,112980.0,112970.0,0.65900272]
[1758524473689,0.31646,112980.0,112970.0,0.66396272]
[1758524473690,0.31351,112980.0,112970.0,0.66396272]
[1758524474143,0.31319,112980.0,112970.0,0.67371936]
[1758524474387,0.31419,112980.0,112970.0,0.66396272]
[1758524474832,0.31419,112980.0,112970.0,0.66296272]
[1758524475074,0.001,112980.0,112970.0,1.18175596]
[1758524477517,0.001,112980.0,112970.0,1.17856596]
[1758524478348,0.00315,112980.0,112970.0,1.17856596]
[1758524478827,0.00315,112980.0,112970.0,0.69674225]
[1758524479059,0.00315,112980.0,112970.0,1.17856596]
[1758524479257,0.001,112980.0,112970.0,1.18175596]
[1758524479631,0.00315,112980.0,112970.0,1.17856596]
[1758524480210,0.00315,112980.0,112970.0,1.15520596]
[1758524482121,0.00315,112980.0,112970.0,0.67338225]
[1758524482346,0.00315,112980.0,112970.0,1.15520596]
[1758524482680,0.20817248,112980.0,112970.0,0.1543841]
[1758524482880,0.18323248,112980.0,112970.0,0.1543841]
[1758524483184,0.20817248,112980.0,112970.0,0.06911443]
[1758524483327,0.20817248,112980.0,112970.0,0.55093814]
[1758524483502,0.20817248,112980.0,112970.0,0.72797629]
[1758524484576,0.20817248,112980.0,112970.0,0.55093814]
[1758524484775,0.20817248,112980.0,112970.0,0.54893814]
[1758524485069,0.20817248,112980.0,112970.0,0.72597629]
[1758524485415,0.20817248,112980.0,112970.0,0.54893814]
[1758524485609,0.20817248,112980.0,112970.0,0.55093814]
[1758524485838,0.20817248,112980.0,112970.0,0.72797629]
[1758524486016,0.20817248,112980.0,112970.0,0.72597629]
[1758524486701,0.20817248,112980.0,112970.0,0.24415258]
[1758524486824,0.20817248,112980.0,112970.0,0.07011443]
[1758524487869,0.51745248,112980.0,112970.0,0.07011443]
[1758524488075,0.20817248,112980.0,112970.0,0.00514086]
[1758524488499,0.51737248,112980.0,112970.0,0.00514086]
[1758524489189,0.51637248,112980.0,112970.0,0.00314086]
[1758524489486,0.52137248,112980.0,112970.0,0.00014086]
[1758524490172,0.52137248,112980.0,112970.0,0.06605819]
[1758524490328,0.52137248,112980.0,112970.0,0.00014086]
[1758524491878,0.21217248,112980.0,112970.0,0.00014086]
[1758524492022,0.52085248,112980.0,112970.0,0.00014086]
[1758524493307,0.60474513,112980.0,112970.0,0.00014086]
[1758524493511,1.2667223,112980.0,112970.0,0.00014086]
[1758524493715,1.601146,112980.0,112970.0,0.00014086]
[1758524493889,1.51725335,112980.0,112970.0,0.00014086]
[1758524495872,1.51716483,112980.0,112970.0,0.00014086]
[1758524497595,1.20936483,112980.0,112970.0,0.00014086]
[1758524497757,1.51712483,112980.0,112970.0,0.00014086]
[1758524498344,1.51672483,112980.0,112970.0,0.00014086]
[1758524498544,1.6019945,112980.0,112970.0,0.00014086]
[1758524498865,0.72754112,112980.0,112970.0,1e-08]
[1758524499285,1.20936483,112980.0,112970.0,1e-08]
[1758524499488,1.04058112,112980.0,112970.0,1e-08]
[1758524499864,1.52240483,112980.0,112970.0,1e-08]
[1758524501057,1.04058663,112980.0,112970.0,1e-08]
[1758524501888,1.1253763,112980.0,112970.0,1e-08]
[1758524502128,0.8128163,112980.0,112970.0,1e-08]
[1758524502419,1.1251763,112980.0,112970.0,1e-08]
[1758524503404,1.1242863,112980.0,112970.0,1e-08]
[1758524504565,1.60611001,112980.0,112970.0,1e-08]
[1758524505198,1.1242863,112980.0,112970.0,1e-08]
[1758524506486,1.12429083,112980.0,112970.0,1e-08]
[1758524506691,1.12429148,112980.0,112970.0,1e-08]
[1758524506907,1.60611519,112980.0,112970.0,1e-08]
[1758524507510,0.67245991,112980.0,112970.0,1e-08]
[1758524507720,0.49496396,112980.0,112970.0,0.02620001]
[1758524507914,0.49298248,112980.0,112970.0,0.02919001]
[1758524510168,0.18202248,112980.0,112970.0,0.02919001]
[1758524510369,0.49290248,112980.0,112970.0,0.02919001]
[1758524512796,0.49495248,112980.0,112970.0,0.02919001]
[1758524513511,0.49146248,112980.0,112970.0,0.02919001]
[1758524514076,0.49351248,112980.0,112970.0,0.02620001]
[1758524514275,0.18202248,112980.0,112970.0,0.02919001]
[1758524514479,0.18202248,112980.0,112970.0,0.8896226]
[1758524514681,0.49122248,112980.0,112970.0,0.87191879]
[1758524515088,0.3142,112980.0,112970.0,0.87191879]
[1758524515311,0.31412,112980.0,112970.0,0.87191879]
[1758524516159,0.31412,112980.0,112970.0,0.20622816]
[1758524516391,0.31412,112980.0,112970.0,0.87191879]
[1758524516601,0.49114248,112980.0,112970.0,0.20622816]
[1758524516747,0.49114248,112980.0,112970.0,0.87191879]
[1758524517242,0.49114248,112980.0,112970.0,0.20622816]
[1758524517448,0.49114248,112980.0,112970.0,0.87191879]
[1758524517624,0.31412,112980.0,112970.0,0.87191879]
[1758524517823,0.49114248,112980.0,112970.0,0.87191879]
[1758524518230,0.49114248,112980.0,112970.0,0.69488064]
[1758524518430,0.18202248,112980.0,112970.0,0.02919001]
[1758524518637,0.18202248,112980.0,112970.0,0.02459001]
[1758524518638,0.49236248,112980.0,112970.0,0.02459001]
[1758524518845,0.49236248,112980.0,112970.0,0.20162816]
[1758524519071,0.49236248,112980.0,112970.0,0.02771001]
[1758524519382,0.49236248,112980.0,112970.0,0.02459001]
[1758524519731,0.49022248,112980.0,112970.0,0.20474816]
[1758524519949,0.3132,112980.0,112970.0,0.87043879]
[1758524520155,0.31292,112980.0,112970.0,0.95570846]
[1758524520360,0.005,112980.0,112970.0,0.95570846]
[1758524520560,0.31284,112980.0,112970.0,0.95570846]
[1758524521323,0.31284,112980.0,112970.0,0.96494579]
[1758524521752,0.31284,112980.0,112970.0,0.95574846]
[1758524523048,0.31284,112980.0,112970.0,0.96506158]
[1758524523228,0.005,112980.0,112970.0,0.96506158]
[1758524523432,0.31212,112980.0,112970.0,0.96506158]
[1758524523640,0.31212,112980.0,112970.0,0.95574846]
[1758524523841,0.48914248,112980.0,112970.0,0.95574846]
[1758524524780,0.48914248,112980.0,112970.0,0.29005783]
[1758524525206,0.48914248,112980.0,112970.0,0.95574846]
[1758524525589,0.48914248,112980.0,112970.0,0.29005783]
[1758524525944,0.49427248,112980.0,112970.0,4.001e-05]
[1758524526077,0.51892248,112980.0,112970.0,4.001e-05]
[1758524526492,0.52828762,112980.0,112970.0,4.001e-05]
[1758524526843,0.48862248,112980.0,112970.0,0.87156879]
[1758524527562,0.49065248,112980.0,112970.0,0.69453064]
[1758524528017,0.49065248,112980.0,112970.0,0.02563001]
[1758524528237,0.49037248,112980.0,112970.0,0.20266816]
[1758524528420,0.48830248,112980.0,112970.0,0.87156879]
[1758524529117,0.005,112980.0,112970.0,0.87156879]
[1758524529297,0.48798248,112980.0,112970.0,0.87156879]
[1758524529497,0.49001248,112980.0,112970.0,0.87156879]
[1758524530426,0.49311248,112980.0,112970.0,4.001e-05]
[1758524530641,0.51776248,112980.0,112970.0,4.001e-05]
[1758524532509,1.31082055,112980.0,112970.0,4.001e-05]
[1758524532960,1.36759483,112980.0,112970.0,4.001e-05]
[1758524533794,1.32549706,112980.0,112970.0,4.001e-05]
[1758524534005,1.01953706,112980.0,112970.0,4.001e-05]
[1758524534230,1.32449706,112980.0,112970.0,4.001e-05]
[1758524534835,0.65880643,112980.0,112970.0,4.001e-05]
[1758524535424,0.62849453,112980.0,112970.0,4.001e-05]
[1758524535625,0.32369453,112980.0,112970.0,4.001e-05]
[1758524535828,0.51877486,112980.0,112970.0,0.00201001]
[1758524536033,0.18405248,112980.0,112970.0,0.00201001]
[1758524536228,0.48905248,112980.0,112970.0,0.02884001]
[1758524536427,0.49215248,112980.0,112970.0,4.001e-05]
[1758524536723,0.51680248,112980.0,112970.0,4.001e-05]
[1758524537794,0.21180248,112980.0,112970.0,4.001e-05]
[1758524538041,0.51680248,112980.0,112970.0,4.001e-05]
[1758524538362,0.21180248,112980.0,112970.0,4.001e-05]
[1758524538667,0.51672248,112980.0,112970.0,4.001e-05]
[1758524540835,0.51632248,112980.0,112970.0,4.001e-05]
[1758524543313,0.64036654,112980.0,112970.0,4.001e-05]
[1758524543492,1.30605717,112980.0,112970.0,4.001e-05]
[1758524543691,0.69714077,112980.0,112970.0,4.001e-05]
[1758524543892,1.7028314,112980.0,112970.0,4.001e-05]
[1758524544093,1.72195578,112980.0,112970.0,4.001e-05]
[1758524544701,1.05626515,112980.0,112970.0,4.001e-05]
[1758524545060,1.72195578,112980.0,112970.0,4.001e-05]
[1758524545337,1.68318139,112980.0,112970.0,4.001e-05]
[1758524545777,1.01749076,112980.0,112970.0,4.001e-05]
[1758524545955,1.69971058,112980.0,112970.0,4.001e-05]
[1758524546307,1.69144501,112980.0,112970.0,4.001e-05]
[1758524546505,1.69080501,112980.0,112970.0,4.001e-05]
[1758524547006,0.72123438,112980.0,112970.0,4.001e-05]
[1758524547208,1.02495438,112980.0,112970.0,4.001e-05]
[1758524547361,1.01669076,112980.0,112970.0,4.001e-05]
[1758524547567,0.65816886,112980.0,112970.0,0.00217001]
[1758524547891,0.93990448,112980.0,112970.0,0.00217001]
[1758524548135,0.96719448,112980.0,112970.0,4.001e-05]
[1758524549417,1.05246415,112980.0,112970.0,4.001e-05]
[1758524549846,1.14818415,112980.0,112970.0,4.001e-05]
[1758524550408,1.81387478,112980.0,112970.0,4.001e-05]
[1758524551517,1.86314105,112980.0,112970.0,4.001e-05]
[1758524551710,1.87140091,112980.0,112970.0,4.001e-05]
[1758524553473,1.89583667,112980.0,112970.0,4.001e-05]
[1758524553685,2.66040091,112980.0,112970.0,4.001e-05]
[1758524553907,2.73967127,112980.0,112970.0,4.001e-05]
[1758524554353,2.43707127,112980.0,112970.0,4.001e-05]
[1758524554569,2.74007127,112980.0,112970.0,4.001e-05]
[1758524554775,2.75658736,112980.0,112970.0,4.001e-05]
[1758524554958,2.09289673,112980.0,112970.0,1e-08]
[1758524555165,2.11589673,112980.0,112970.0,1e-08]
[1758524555362,1.80589673,112980.0,112970.0,1e-08]
[1758524555787,2.10889673,112980.0,112970.0,1e-08]
[1758524555791,1.81289673,112980.0,112970.0,1e-08]
[1758524556035,2.11573673,112980.0,112970.0,1e-08]
[1758524557422,2.11565673,112980.0,112970.0,1e-08]
[1758524557653,2.18255843,112980.0,112970.0,1e-08]
[1758524557882,1.770093,112980.0,112970.0,1e-08]
[1758524558126,2.072373,112980.0,112970.0,1e-08]
[1758524558624,1.770093,112980.0,112970.0,1e-08]
[1758524558840,2.074413,112980.0,112970.0,1e-08]
[1758524559053,2.15968267,112980.0,112970.0,1e-08]
[1758524559513,1.85536267,112980.0,112970.0,1e-08]
[1758524559687,2.15952267,112980.0,112970.0,1e-08]
[1758524560684,1.85536267,112980.0,112970.0,1e-08]
[1758524560892,2.15932267,112980.0,112970.0,1e-08]
[1758524561092,1.55535322,112980.0,112970.0,1e-08]
[1758524561280,1.85895322,112980.0,112970.0,1e-08]
[1758524561485,1.85887322,112980.0,112970.0,1e-08]
[1758524561887,1.85267862,112980.0,112970.0,1e-08]
[1758524562303,1.85886823,112980.0,112970.0,1e-08]
[1758524563832,1.88330399,112980.0,112970.0,1e-08]
[1758524564461,2.05566399,112980.0,112970.0,1e-08]
[1758524565714,2.14888399,112980.0,112970.0,1e-08]
[1758524566084,1.93258643,112980.0,112970.0,1e-08]
[1758524566291,2.11172891,112980.0,112970.0,1e-08]
[1758524566492,1.80820891,112980.0,112970.0,1e-08]
[1758524566702,2.11060891,112980.0,112970.0,1e-08]
[1758524566929,2.08617315,112980.0,112970.0,1e-08]
[1758524567989,1.73377315,112980.0,112970.0,1e-08]
[1758524568137,2.00090348,112980.0,112970.0,1e-08]
[1758524568491,2.00070348,112980.0,112970.0,1e-08]
[1758524569302,2.00066348,112980.0,112970.0,1e-08]
[1758524570164,1.97325348,112980.0,112970.0,1e-08]
[1758524570366,2.05852315,112980.0,112970.0,1e-08]
[1758524570568,1.99259315,112980.0,112970.0,1e-08]
[1758524570991,1.68754315,112980.0,112970.0,1e-08]
[1758524571183,1.96494315,112980.0,112970.0,1e-08]
[1758524571384,1.52799348,112980.0,112970.0,1e-08]
[1758524571591,1.01612363,112980.0,112970.0,0.02694001]
[1758524571867,2.32337426,112980.0,112970.0,0.02694001]
[1758524572112,2.35352616,112980.0,112970.0,0.02694001]
[1758524572517,1.89152616,112980.0,112970.0,0.02694001]
[1758524573022,1.89552616,112980.0,112970.0,0.02794001]
[1758524573251,1.89852616,112980.0,112970.0,0.02794001]
[1758524573590,1.90064616,112980.0,112970.0,0.00100001]
[1758524573793,1.90365616,112980.0,112970.0,0.00100001]
[1758524574256,1.90064616,112980.0,112970.0,0.00100001]
[1758524574571,1.98892583,112980.0,112970.0,0.00100001]
[1758524574693,1.80489883,112980.0,112970.0,0.00100001]
[1758524575335,1.71962916,112980.0,112970.0,1e-08]
[1758524576121,0.93127553,112980.0,112970.0,0.02605001]
[1758524576328,1.71377916,112980.0,112970.0,0.02907001]
[1758524577305,1.23179553,112980.0,112970.0,0.02907001]
[1758524577689,0.93127553,112980.0,112970.0,0.02907001]
[1758524577837,0.90112363,112980.0,112970.0,0.02907001]
[1758524578042,1.20164363,112980.0,112970.0,0.02907001]
[1758524578489,0.90112363,112980.0,112970.0,0.02907001]
[1758524578940,1.20156363,112980.0,112970.0,0.02907001]
[1758524579350,0.90112363,112980.0,112970.0,0.02907001]
[1758524579777,1.20136363,112980.0,112970.0,0.02907001]
[1758524580716,1.2013598,112980.0,112970.0,0.02907001]
[1758524582300,1.2013598,112980.0,112970.0,0.02911001]
[1758524582301,1.20755179,112980.0,112970.0,0.02911001]
[1758524582513,1.77958509,112980.0,112970.0,4.001e-05]
[1758524582926,1.80973699,112980.0,112970.0,4.001e-05]
[1758524583329,1.83238699,112980.0,112970.0,4.001e-05]
[1758524584650,1.76363273,112980.0,112970.0,4.001e-05]
[1758524585038,1.2819691,112980.0,112970.0,4.001e-05]
[1758524585215,1.24280369,112980.0,112970.0,4.001e-05]
[1758524585392,1.74711732,112980.0,112970.0,4.001e-05]
[1758524585591,1.76363499,112980.0,112970.0,4.001e-05]
[1758524586032,0.54719005,112970.0,112960.0,0.02451]
[1758524586235,0.65983012,112970.0,112960.0,0.02451]
[1758524586474,0.65983012,112970.0,112960.0,0.02971]
[1758524586926,0.96219012,112970.0,112960.0,0.02971]
[1758524587118,0.65983012,112970.0,112960.0,0.02971]
[1758524587502,0.50888855,112970.0,112960.0,0.02971]
[1758524587778,0.48982003,112970.0,112960.0,0.02971]
[1758524587985,0.49882003,112970.0,112960.0,0.51137363]
[1758524588342,0.49882003,112970.0,112960.0,0.02971]
[1758524588547,0.49886699,112970.0,112960.0,0.02971]
[1758524589568,0.19634699,112970.0,112960.0,0.51137363]
[1758524589772,0.49950699,112970.0,112960.0,0.02971]
[1758524589974,0.01104696,112970.0,112960.0,0.68842745]
[1758524590347,0.00668696,112970.0,112960.0,1.02842745]
[1758524590544,0.31636696,112970.0,112960.0,1.02842745]
[1758524590748,0.30972696,112970.0,112960.0,1.02842745]
[1758524591014,0.30972696,112970.0,112960.0,1.11369712]
[1758524591224,0.00104696,112970.0,112960.0,1.19384902]
[1758524591815,0.12848,112980.0,112970.0,0.59719005]
[1758524592035,0.02660934,113000.0,112990.0,0.51700681]
[1758524592233,0.34045627,113000.0,112990.0,1.08394011]
[1758524592434,0.34045627,113000.0,112990.0,1.10781011]
[1758524592825,0.02665627,113000.0,112990.0,1.65579805]
[1758524593025,0.34037627,113000.0,112990.0,1.17413442]
[1758524593448,0.34037627,113000.0,112990.0,0.69247079]
[1758524593656,4.693e-05,113000.0,112990.0,0.7019337]
[1758524593861,4.693e-05,113000.0,112990.0,1.69541286]
[1758524594171,4.693e-05,113000.0,112990.0,0.7310856]
[1758524594571,4.693e-05,113000.0,112990.0,1.69441286]
[1758524595017,4.693e-05,113000.0,112990.0,1.70741286]
[1758524595230,4.693e-05,113000.0,112990.0,1.74941286]
[1758524595826,0.00104693,113000.0,112990.0,1.76445286]
[1758524596010,0.35312187,113030.0,113020.0,0.17695983]
[1758524596183,0.32656693,113030.0,113020.0,0.74389313]
[1758524596570,0.32656693,113030.0,113020.0,1.10776313]
[1758524596781,4.693e-05,113030.0,113020.0,0.6260995]
[1758524596982,4.693e-05,113030.0,113020.0,0.7062514]
[1758524597204,4.693e-05,113030.0,113020.0,1.18691503]
[1758524597775,4.693e-05,113030.0,113020.0,1.19191503]
[1758524597996,4.693e-05,113030.0,113020.0,1.19691503]
[1758524598205,4.693e-05,113030.0,113020.0,0.7102514]
[1758524598408,4.693e-05,113030.0,113020.0,1.19191503]
[1758524598604,0.00104693,113030.0,113020.0,1.20391503]
[1758524599539,0.00104693,113030.0,113020.0,1.68557866]
[1758524599823,0.00104693,113030.0,113020.0,1.31902608]
[1758524600416,0.00104693,113030.0,113020.0,1.31402608]
[1758524600622,0.00104693,113030.0,113020.0,0.83236245]
[1758524600819,0.00104693,113030.0,113020.0,1.31402608]
[1758524601066,0.00204693,113030.0,113020.0,1.32102608]
[1758524601682,0.00204693,113030.0,113020.0,1.24187418]
[1758524601941,0.00204693,113030.0,113020.0,0.71021055]
[1758524602226,0.1789911,113030.0,113020.0,0.53325072]
[1758524602492,0.1789911,113030.0,113020.0,0.67491435]
[1758524602493,0.1841911,113030.0,113020.0,0.67491435]
[1758524602759,0.18381406,113030.0,113020.0,0.67491435]
[1758524603029,0.18070406,113030.0,113020.0,1.01491435]
[1758524603296,0.17861406,113030.0,113020.0,1.01491435]
[1758524603752,0.18070406,113030.0,113020.0,1.01491435]
[1758524603756,0.18381406,113030.0,113020.0,1.01491435]
[1758524604022,0.18070406,113030.0,113020.0,0.53325072]
[1758524604271,0.18070406,113030.0,113020.0,1.01491435]
[1758524604507,0.20641406,113030.0,113020.0,0.08411105]
[1758524604945,0.21257456,113030.0,113020.0,0.08411105]
[1758524605356,0.22197227,113030.0,113020.0,0.56577468]
[1758524605567,0.23018647,113030.0,113020.0,0.56577468]
[1758524606211,0.52990876,113030.0,113020.0,0.08411105]
[1758524606418,0.54889916,113030.0,113020.0,0.56577468]
[1758524606623,0.57149916,113030.0,113020.0,0.08411105]
[1758524606885,0.57149916,113030.0,113020.0,0.56577468]
[1758524607175,0.57149916,113030.0,113020.0,0.08411105]
[1758524607448,0.57340916,113030.0,113020.0,0.01904]
[1758524607924,0.57340916,113030.0,113020.0,0.01204]
[1758524607925,0.57240916,113030.0,113020.0,0.01204]
[1758524608405,0.57173927,113030.0,113020.0,0.00404]
[1758524608856,0.58373927,113030.0,113020.0,0.00404]
[1758524609077,0.58373927,113030.0,113020.0,4e-05]
[1758524609447,1.0654029,113030.0,113020.0,4e-05]
[1758524609644,0.58373927,113030.0,113020.0,4e-05]
[1758524610406,1.18082447,113030.0,113020.0,4e-05]
[1758524610577,0.70016084,113030.0,113020.0,4e-05]
[1758524610783,1.18182447,113030.0,113020.0,4e-05]
[1758524610988,0.3684395,113030.0,113020.0,4e-05]
[1758524611198,0.6815291,113030.0,113020.0,4e-05]
[1758524611377,0.7005195,113030.0,113020.0,4e-05]
[1758524611595,1.18218313,113030.0,113020.0,4e-05]
[1758524611792,0.7005195,113030.0,113020.0,4e-05]
[1758524611974,1.18218313,113030.0,113020.0,4e-05]
[1758524613771,0.7005195,113030.0,113020.0,4e-05]
[1758524613979,1.18218313,113030.0,113020.0,4e-05]
[1758524614178,1.52218313,113030.0,113020.0,4e-05]
[1758524615051,1.0405195,113030.0,113020.0,4e-05]
[1758524615262,0.73505099,113030.0,113020.0,4e-05]
[1758524615489,1.21671462,113030.0,113020.0,4e-05]
[1758524615703,1.54771462,113030.0,113020.0,4e-05]
[1758524616118,1.06605099,113030.0,113020.0,4e-05]
[1758524616371,1.54779462,113030.0,113020.0,4e-05]
[1758524616879,0.24991942,113030.0,113020.0,4e-05]
[1758524617034,0.24991942,113030.0,113020.0,0.78561911]
[1758524617035,0.05398485,113030.0,113020.0,0.78561911]
[1758524617235,0.53543753,113030.0,113020.0,0.5909633]
[1758524617439,0.55442793,113030.0,113020.0,0.5909633]
[1758524617897,0.04536376,113030.0,113020.0,0.76792313]
[1758524618026,0.52299753,113030.0,113020.0,0.76792313]
[1758524618231,0.52315753,113030.0,113020.0,0.76992313]
[1758524618437,0.52815753,113030.0,113020.0,0.76992313]
[1758524618643,0.52815753,113030.0,113020.0,0.5929633]
[1758524619070,0.54714793,113030.0,113020.0,0.11129967]
[1758524619278,0.55233793,113030.0,113020.0,0.11129967]
[1758524619702,0.55233793,113030.0,113020.0,0.17832385]
[1758524619914,0.37020376,113030.0,113020.0,0.65998748]
[1758524620129,0.52815753,113030.0,113020.0,0.17832385]
[1758524620339,0.64483793,113030.0,113020.0,0.65998748]
[1758524620542,0.64483793,113030.0,113020.0,0.17832385]
[1758524621598,0.64483793,113030.0,113020.0,0.65998748]
[1758524622015,0.64801793,113030.0,113020.0,0.65998748]
[1758524622221,0.64483793,113030.0,113020.0,0.65998748]
[1758524622447,0.64282793,113030.0,113020.0,0.65998748]
[1758524622648,0.31098793,113030.0,113020.0,0.65998748]
[1758524622864,0.62427753,113030.0,113020.0,0.83694731]
[1758524623058,0.64326793,113030.0,113020.0,0.17832385]
[1758524623346,0.64326793,113030.0,113020.0,0.65998748]
[1758524623555,0.64326793,113030.0,113020.0,0.83694731]